bitfinex-derivatives/quotes_ETHF0:USTF0_20240905
["timestamp","ask_amount","ask_price","bid_price","bid_amount"]
[1725508869614,0.00623986,2404.9,2404.8,2.37516]
[1725508869815,0.00623986,2404.9,2404.8,6.53356]
[1725508869816,1.61854869,2404.9,2404.8,6.53356]
[1725508871818,0.00623986,2404.9,2404.8,6.53356]
[1725508872017,2.15564566,2404.9,2404.8,2.37516]
[1725508872325,0.00623986,2404.9,2404.8,2.37516]
[1725508872517,0.00623986,2404.9,2404.7,2.88]
[1725508872518,0.00623986,2404.9,2404.3,1.07018121]
[1725508872719,1.61213594,2404.5,2404.4,0.29111]
[1725508873021,2.1494058,2404.5,2404.0,2.1541]
[1725508873220,1.61179393,2404.1,2403.8,0.00623986]
[1725508873420,1.0987,2404.0,2403.9,0.29116]
[1725508873622,2.1494058,2404.2,2403.9,0.29116]
[1725508873623,1.61179393,2404.2,2404.1,0.29115]
[1725508874010,1.61179393,2404.2,2404.1,4.45035]
[1725508874420,2.69359393,2404.4,2404.3,0.29113]
[1725508876233,1.61179393,2404.5,2404.4,0.29111]
[1725508877522,1.61179393,2404.5,2404.4,2.29521]
[1725508877825,2.1117,2404.6,2404.5,0.2911]
[1725508877826,2.67039393,2404.6,2404.5,0.2911]
[1725508878323,1.61179393,2404.7,2404.6,0.29109]
[1725508881126,2.1494058,2404.7,2404.6,0.29109]
[1725508881930,2.1494058,2404.7,2404.5,0.2911]
[1725508882130,1.61225578,2404.6,2404.4,3.17111]
[1725508882321,1.61225578,2404.6,2404.4,2.88]
[1725508882521,2.68445578,2404.5,2404.4,3.17111]
[1725508882935,2.68445578,2404.5,2404.4,7.33031]
[1725508884126,1.0722,2404.5,2404.4,7.33031]
[1725508887833,1.61225578,2404.6,2404.5,0.2911]
[1725508888034,1.61225578,2404.6,2404.5,1.2896]
[1725508888233,1.61225578,2404.6,2404.5,2.2886]
[1725508889634,1.61225578,2404.6,2404.5,3.01636]
[1725508890531,1.61225578,2404.7,2404.6,0.29109]
[1725508891627,4.2201058,2404.8,2404.6,0.29109]
[1725508891827,4.2201058,2404.8,2404.2,5.0483]
[1725508891828,2.1494058,2404.7,2404.2,5.0483]
[1725508892035,2.1494058,2404.7,2404.4,0.29111]
[1725508892036,1.61300119,2404.5,2404.4,0.29111]
[1725508892226,3.2374058,2404.6,2404.4,0.29111]
[1725508892534,3.2099058,2404.5,2404.4,0.29111]
[1725508893138,1.0605,2404.5,2404.4,0.29111]
[1725508894248,3.2099058,2404.5,2404.4,0.29111]
[1725508895044,1.0605,2404.5,2404.4,0.29111]
[1725508895334,3.2099058,2404.5,2404.4,0.29111]
[1725508895538,1.0605,2404.5,2404.4,0.29111]
[1725508895935,3.2099058,2404.5,2404.4,0.29111]
[1725508896945,1.0605,2404.5,2404.4,0.29111]
[1725508897337,2.67406374,2404.5,2404.4,0.29111]
[1725508897938,1.0605,2404.5,2404.4,0.29111]
[1725508898538,3.2099058,2404.5,2404.4,0.29111]
[1725508899046,1.0605,2404.5,2404.4,0.29111]
[1725508899243,3.2099058,2404.5,2404.4,0.29111]
[1725508901237,3.21186881,2404.5,2404.4,0.29111]
[1725508901543,3.21190366,2404.5,2404.4,0.29111]
[1725508905247,1.0605,2404.5,2404.4,0.29111]
[1725508905548,2.15140366,2404.6,2404.5,0.2911]
[1725508905742,2.15140366,2404.6,2404.5,5.549]
[1725508905934,2.67477809,2404.7,2404.3,0.29112]
[1725508906139,4.2851,2404.8,2404.1,3.2078]
[1725508906140,2.67477809,2404.4,2404.1,3.2078]
[1725508906348,5.3396219,2404.3,2404.2,0.29114]
[1725508906846,5.3396219,2404.3,2404.1,0.29114]
[1725508907033,5.3396219,2404.3,2404.2,0.29114]
[1725508908038,5.33923234,2404.3,2404.2,0.29114]
[1725508909042,3.1887,2404.3,2404.2,0.29114]
[1725508909240,5.3386996,2404.3,2404.2,0.29114]
[1725508909950,4.3219996,2404.3,2404.2,0.29114]
[1725508910248,3.78441063,2404.3,2404.2,0.29114]
[1725508910640,1.61241063,2404.3,2404.2,3.17114]
[1725508911147,3.1814996,2404.3,2404.2,0.29114]
[1725508911351,3.1814996,2404.3,2404.0,2.88]
[1725508911352,4.1788996,2404.3,2404.1,0.29114]
[1725508911544,1.0965,2404.2,2404.1,0.29114]
[1725508912250,2.70863524,2404.2,2404.1,0.29114]
[1725508912946,2.70855381,2404.2,2404.1,0.29114]
[1725508913149,1.0965,2404.2,2404.1,0.29114]
[1725508913456,2.70878005,2404.2,2404.1,0.29114]
[1725508914049,2.70878005,2404.2,2404.1,1.49114]
[1725508918246,1.0965,2404.2,2404.1,1.49114]
[1725508919247,2.70926989,2404.2,2404.1,1.49114]
[1725508919450,1.0965,2404.2,2404.1,1.49114]
[1725508919652,2.70926659,2404.2,2404.1,1.49114]
[1725508920748,1.61276659,2404.2,2404.1,5.42682]
[1725508920950,1.61276659,2404.3,2404.2,0.29114]
[1725508921153,1.61276659,2404.3,2404.2,2.51534]
[1725508921359,1.61276659,2404.3,2404.2,3.54944]
[1725508921754,2.1499996,2404.3,2404.2,0.29114]
[1725508921954,2.1499996,2404.3,2403.9,1.07018121]
[1725508921955,6.83397809,2404.3,2403.9,1.07018121]
[1725508922153,2.15052176,2404.1,2403.9,0.29117]
[1725508922353,1.0165,2404.0,2403.9,0.29117]
[1725508922555,3.16702176,2404.0,2403.9,0.29117]
[1725508925063,1.0165,2404.0,2403.9,0.29117]
[1725508925251,3.16702176,2404.0,2403.9,0.29117]
[1725508925451,1.0165,2404.0,2403.9,0.29117]
[1725508925757,3.16702176,2404.0,2403.9,0.29117]
[1725508926157,3.16702176,2404.0,2403.8,3.21403986]
[1725508926158,5.1765,2404.0,2403.8,0.00623986]
[1725508926356,8.58247923,2403.9,2403.8,0.00623986]
[1725508926562,8.4392,2403.9,2403.3,3.2078]
[1725508926754,1.61246242,2403.4,2403.3,3.2078]
[1725508927055,2.1499499,2403.4,2403.3,3.2078]
[1725508927259,2.1499499,2403.4,2402.6,3.18930499]
[1725508927260,15.1203522,2403.4,2402.6,3.18930499]
[1725508927464,1.61074888,2402.9,2402.6,1.82780378]
[1725508927651,1.0714,2402.8,2402.7,0.29132]
[1725508928258,1.61074888,2402.9,2402.8,0.29131]
[1725508928457,0.00623986,2403.0,2402.9,0.2913]
[1725508928853,0.00623986,2403.0,2402.8,0.2913]
[1725508929055,1.61698874,2403.0,2402.8,0.2913]
[1725508929359,0.29131,2402.8,2402.6,1.82780378]
[1725508929566,2.65878092,2402.7,2402.6,1.82780378]
[1725508929866,8.45956517,2402.7,2402.6,1.82780378]
[1725508930064,4.1624,2402.6,2402.0,0.2914]
[1725508930271,4.81411564,2402.4,2401.9,3.2078]
[1725508930457,3.2078,2402.4,2402.3,0.29137]
[1725508930656,3.2078,2402.4,2402.2,0.29137]
[1725508930861,3.2078,2402.4,2402.3,0.29137]
[1725508932263,3.2078,2402.4,2402.1,0.00623986]
[1725508932460,3.2078,2402.4,2402.3,0.29137]
[1725508933571,4.111,2402.9,2402.3,7.0424]
[1725508933759,4.111,2402.9,2402.5,2.88]
[1725508933963,2.17213986,2403.0,2402.5,2.88]
[1725508933964,2.17213986,2403.0,2402.8,0.2913]
[1725508934273,2.17213986,2403.0,2402.5,2.88]
[1725508934274,2.17213986,2403.0,2402.9,0.2913]
[1725508937568,0.00623986,2403.0,2402.9,0.2913]
[1725508940472,5.49298757,2403.6,2403.5,0.29122]
[1725508940770,9.6791522,2404.0,2402.9,7.3329]
[1725508940771,2.0234,2403.7,2403.6,0.29121]
[1725508941564,0.00623986,2403.9,2403.8,0.29119]
[1725508941768,0.00623986,2403.9,2403.8,3.17119]
[1725508943275,0.00623986,2403.9,2403.8,7.33119]
[1725508944273,0.00623986,2403.9,2403.8,3.17119]
[1725508944773,3.2078,2404.5,2403.8,3.17119]
[1725508944774,3.2078,2404.5,2404.2,0.29113]
[1725508944968,3.2078,2404.5,2403.6,0.86034287]
[1725508944969,3.2078,2404.5,2404.3,0.29113]
[1725508945272,3.2078,2404.5,2404.2,0.29113]
[1725508945473,3.2078,2404.5,2404.0,7.1595]
[1725508945674,3.21403986,2404.5,2404.4,0.29111]
[1725508946174,3.21403986,2404.5,2404.2,2.88]
[1725508946175,3.21403986,2404.5,2404.3,0.29112]
[1725508947174,3.21403986,2404.5,2404.4,0.29111]
[1725508947768,3.21403986,2404.5,2404.3,0.29112]
[1725508948070,3.21403986,2404.5,2404.4,0.29111]
[1725508948669,3.21403986,2404.5,2404.3,0.29112]
[1725508949377,3.21403986,2404.5,2404.4,0.29111]
[1725508951073,3.21403986,2404.5,2404.0,3.9517]
[1725508951580,3.21403986,2404.5,2404.3,0.29112]
[1725508952076,3.21403986,2404.5,2404.4,0.29111]
[1725508952468,7.37323986,2404.5,2404.0,3.9517]
[1725508952676,6.09403986,2404.5,2403.8,2.88]
[1725508952883,6.38514986,2404.5,2404.1,0.29115]
[1725508953084,10.54434986,2404.5,2404.1,0.29115]
[1725508953576,10.54434986,2404.5,2403.9,0.29117]
[1725508953577,3.2078,2404.2,2403.9,0.29117]
[1725508953785,3.2078,2404.2,2404.0,0.29116]
[1725508953978,1.0005,2404.1,2404.0,0.29116]
[1725508954179,5.1597,2404.1,2404.0,0.29116]
[1725508954976,5.1605,2404.1,2404.0,0.29116]
[1725508955376,11.1605,2404.1,2403.6,2.88]
[1725508955584,11.1605,2404.1,2403.5,3.1579]
[1725508955585,1.0401,2404.0,2403.8,0.29118]
[1725508955787,4.16,2403.9,2403.8,0.29118]
[1725508956581,1.0401,2404.0,2403.9,0.29117]
[1725508956978,5.2001,2404.0,2403.9,0.29117]
[1725508958379,5.2001,2404.0,2403.6,6.0878]
[1725508958587,1.0401,2404.0,2403.6,6.0878]
[1725508958777,1.0401,2404.0,2403.9,0.29117]
[1725508961894,1.0005,2404.1,2404.0,0.29116]
[1725508962384,5.1605,2404.1,2404.0,0.29116]
[1725508962578,3.2078,2404.2,2404.1,0.29115]
[1725508962778,1.057,2404.3,2404.2,0.29114]
[1725508963176,1.09643986,2404.5,2404.3,0.29112]
[1725508964588,1.09643986,2404.5,2404.4,0.29111]
[1725508965687,1.09643986,2404.5,2404.3,0.29112]
[1725508967688,1.09643986,2404.5,2404.4,0.29111]
[1725508967889,0.00623986,2404.5,2404.4,3.17111]
[1725508969188,0.00623986,2404.5,2404.4,0.29111]
[1725508969687,0.00623986,2404.5,2404.4,3.17111]
[1725508970382,0.00623986,2404.5,2404.4,0.29111]
[1725508975192,0.00623986,2404.5,2404.4,3.17111]
[1725508976889,0.00623986,2404.5,2404.4,7.33031]
[1725508977090,5.232e-05,2404.5,2404.4,7.33031]
[1725508977400,2.1518,2405.2,2405.1,0.29103]
[1725508977894,2.1518,2405.2,2404.8,2.88]
[1725508977895,6.3094,2405.2,2405.0,0.29103]
[1725508978196,2.1518,2405.2,2405.0,0.29103]
[1725508978786,2.1518,2405.2,2404.9,1.34068986]
[1725508979092,2.1518,2405.2,2405.0,0.29103]
[1725508980700,3.2078,2405.1,2404.9,0.29728986]
[1725508980904,2.1518,2405.2,2404.9,0.29728986]
[1725508981196,2.1518,2405.2,2404.9,0.29727986]
[1725508981802,2.1518,2405.2,2404.9,0.00623986]
[1725508981997,2.1518,2405.2,2404.9,0.29728986]
[1725508982597,2.44282,2405.2,2404.9,0.00623986]
[1725508983311,2.44282,2405.2,2404.9,0.29728986]
[1725508983601,7.3654,2405.1,2404.9,0.00623986]
[1725508984008,4.1584,2405.0,2404.9,0.29728986]
[1725508984406,4.29946517,2405.2,2405.0,0.29104]
[1725508984911,2.1518,2405.2,2405.1,0.29103]
[1725508989211,2.1518,2405.2,2405.0,2.1077]
[1725508989412,2.1518,2405.2,2404.9,0.00623986]
[1725508989608,2.1518,2405.2,2404.9,0.29728986]
[1725508990609,2.1518,2405.2,2405.0,0.29104]
[1725508990810,2.1518,2405.2,2404.9,0.29728986]
[1725508991015,2.1518,2405.2,2404.9,0.00623986]
[1725508991215,4.29946517,2405.2,2404.9,0.29728986]
[1725508991408,4.29946517,2405.2,2405.0,0.29104]
[1725508991719,2.1518,2405.2,2405.0,0.29104]
[1725508991907,2.1518,2405.2,2405.1,0.29103]
[1725508992816,2.1518,2405.2,2404.9,0.00623986]
[1725508992817,2.1518,2405.2,2405.0,0.29103]
[1725508993110,2.1518,2405.2,2404.9,0.00623986]
[1725508993111,2.1518,2405.2,2405.1,0.29103]
[1725508993512,2.1518,2405.2,2405.0,0.29103]
[1725508993709,2.1518,2405.2,2405.1,0.29103]
[1725508994514,1.26165503,2406.2,2405.4,0.72749]
[1725508994715,1.079,2405.9,2405.8,6.37874]
[1725508995013,1.079,2405.9,2405.8,3.49874]
[1725508996104,1.079,2405.9,2405.7,0.29095]
[1725508996105,4.2868,2405.9,2405.7,0.29095]
[1725508996313,4.2868,2405.9,2405.8,0.29094]
[1725508996314,1.079,2405.9,2405.8,0.29094]
[1725508997215,5.2358,2405.9,2405.8,0.29094]
[1725508997424,5.2358,2405.9,2405.2,5.2919]
[1725508997425,14.4436,2405.9,2405.2,8.89943]
[1725508997714,14.4436,2405.9,2405.8,0.29094]
[1725508997715,4.2868,2405.9,2405.8,0.29094]
[1725508998111,5.2358,2405.9,2405.8,0.29094]
[1725508998423,11.2358,2405.9,2405.8,0.29094]
[1725508998609,5.2358,2405.9,2405.8,0.29094]
[1725509001317,0.9981,2406.1,2406.0,0.29092]
[1725509001622,0.9981,2406.1,2405.6,2.88]
[1725509001819,0.9981,2406.1,2405.7,0.7274]
[1725509002026,0.9981,2406.1,2405.7,1.7292]
[1725509002322,0.9981,2406.1,2406.0,0.29092]
[1725509003217,1.0204,2406.3,2406.2,0.2909]
[1725509005727,1.038,2406.4,2406.3,0.29088]
[1725509006522,7.3188,2406.5,2406.4,0.29087]
[1725509006719,8.3693,2406.5,2406.4,0.29087]
[1725509007821,4.2583,2406.5,2406.4,0.29087]
[1725509010127,1.0505,2406.5,2406.4,0.29087]
[1725509010623,1.0136,2406.6,2406.3,3.9834]
[1725509010832,1.0136,2406.6,2406.5,0.29086]
[1725509011535,3.2078,2406.7,2406.6,0.29085]
[1725509011925,3.2078,2406.7,2406.5,2.88]
[1725509012118,3.2078,2406.7,2406.6,0.29085]
[1725509017036,4.111,2406.9,2406.7,0.29084]
[1725509017226,4.111,2406.9,2406.5,2.88]
[1725509017928,4.2106,2407.1,2407.0,0.2908]
[1725509017929,1.0028,2407.1,2407.0,0.2908]
[1725509018230,1.0028,2407.1,2406.9,0.29081]
[1725509018425,4.2106,2407.1,2406.7,2.88]
[1725509018625,4.2106,2407.1,2406.7,3.17083]
[1725509018626,4.50139,2407.1,2406.7,3.17083]
[1725509018823,4.2106,2407.1,2406.8,0.29082]
[1725509019031,4.2106,2407.1,2407.0,0.2908]
[1725509019227,1.0028,2407.1,2407.0,0.2908]
[1725509019434,1.0028,2407.1,2407.0,3.1708]
[1725509019730,4.2206,2407.4,2407.2,0.29077]
[1725509019929,1.0039,2407.3,2407.2,0.29076]
[1725509020831,3.49852,2407.7,2407.3,0.29076]
[1725509021028,2.0621,2407.6,2407.2,2.88]
[1725509021329,2.0621,2407.6,2407.5,0.29074]
[1725509021529,6.2157,2407.6,2407.5,0.29074]
[1725509022235,2.0621,2407.6,2407.5,0.29074]
[1725509022628,2.0621,2407.6,2407.5,1.35524]
[1725509023228,4.111,2407.8,2407.7,0.29071]
[1725509023431,3.2078,2408.0,2407.7,2.88]
[1725509023624,4.111,2408.2,2407.9,2.88]
[1725509023625,6.1444,2408.2,2407.9,2.88]
[1725509023829,2.0334,2408.2,2408.1,0.29067]
[1725509024533,2.0334,2408.2,2408.0,1.0814]
[1725509024836,2.0334,2408.2,2408.1,0.29067]
[1725509025028,4.111,2408.5,2408.3,0.29064]
[1725509025225,5.1495,2408.5,2408.3,0.29064]
[1725509025830,5.1495,2408.5,2408.4,0.29063]
[1725509026033,1.0385,2408.5,2408.4,0.29063]
[1725509026432,4.111,2408.9,2408.4,7.032]
[1725509026736,4.111,2408.9,2408.6,0.2906]
[1725509026936,4.111,2408.9,2408.8,0.29058]
[1725509027132,4.111,2408.9,2408.5,2.11373986]
[1725509027341,4.111,2408.9,2408.7,0.29059]
[1725509027635,4.111,2408.9,2408.6,0.2906]
[1725509028637,4.111,2408.9,2408.7,0.29059]
[1725509028831,4.111,2408.9,2408.8,0.29058]
[1725509029038,4.111,2408.9,2408.6,3.9062]
[1725509029039,4.111,2408.9,2408.7,0.29059]
[1725509029442,4.111,2408.9,2408.8,0.29058]
[1725509029643,4.111,2408.9,2408.7,0.29059]
[1725509030649,4.111,2408.9,2408.8,4.1512]
[1725509030845,4.111,2408.9,2408.7,4.44179]
[1725509031045,4.111,2408.9,2408.7,0.29059]
[1725509031250,4.111,2408.9,2408.8,0.29058]
[1725509031449,5.233,2409.1,2408.8,4.1512]
[1725509031647,5.233,2409.1,2408.9,0.29056]
[1725509032150,5.233,2409.1,2408.8,3.17057]
[1725509033148,5.233,2409.1,2408.9,0.29057]
[1725509033652,5.233,2409.1,2408.8,2.88]
[1725509033653,5.233,2409.1,2408.8,3.17057]
[1725509033852,5.233,2409.1,2408.9,0.29057]
[1725509034153,3.49828,2409.7,2409.1,0.29055]
[1725509034351,4.55498,2409.7,2409.2,3.17053]
[1725509034949,4.2645,2409.7,2409.2,2.88]
[1725509035145,4.55498,2409.7,2409.2,3.17053]
[1725509035455,0.29049,2409.6,2409.2,3.17053]
[1725509035649,4.2645,2409.7,2409.2,3.17053]
[1725509035855,4.2645,2409.7,2409.4,0.29051]
[1725509036158,4.55498,2409.7,2409.3,0.29051]
[1725509036356,4.2645,2409.7,2409.3,0.29051]
[1725509036557,4.2645,2409.7,2409.3,0.50273428]
[1725509036957,4.55498,2409.7,2409.3,0.50273428]
[1725509037256,4.55498,2409.7,2409.4,0.2905]
[1725509037257,4.2645,2409.7,2409.4,0.2905]
[1725509038052,4.2645,2409.7,2409.3,0.21222428]
[1725509038254,4.2645,2409.7,2409.4,0.2905]
[1725509039251,4.2645,2409.7,2409.5,0.2905]
[1725509039452,4.2645,2409.7,2409.4,0.2905]
[1725509039755,4.2645,2409.7,2409.5,0.29049]
[1725509040055,4.2645,2409.7,2409.4,0.2905]
[1725509040647,4.2645,2409.7,2409.3,0.20670558]
[1725509040854,4.2645,2409.7,2409.5,0.29049]
[1725509041258,4.2645,2409.7,2408.6,0.72651]
[1725509041459,3.2078,2409.1,2408.9,0.29056]
[1725509041647,3.2078,2409.1,2408.6,5.6874]
[1725509041849,0.29052,2409.4,2408.6,5.6874]
[1725509041850,3.49832,2409.3,2408.9,0.29056]
[1725509042055,1.0313,2409.2,2408.9,0.29056]
[1725509042559,1.0313,2409.2,2408.9,0.29057]
[1725509042856,1.0313,2409.2,2409.0,0.29055]
[1725509043060,1.0313,2409.2,2408.9,0.29056]
[1725509043559,1.0313,2409.2,2408.8,0.29058]
[1725509043560,3.2078,2409.0,2408.8,0.29058]
[1725509044453,0.7568,2408.9,2408.8,0.29058]
[1725509044665,0.7568,2408.9,2408.7,0.29058]
[1725509044964,0.7568,2408.9,2408.8,0.29058]
[1725509047961,3.2078,2409.0,2408.8,4.44178]
[1725509048160,3.2078,2409.0,2408.9,0.29057]
[1725509048354,3.2078,2409.0,2408.8,0.29058]
[1725509048863,3.2078,2409.0,2408.7,2.88]
[1725509049359,3.2078,2409.0,2408.7,3.17059]
[1725509049560,3.2078,2409.0,2408.7,2.88]
[1725509049955,3.2078,2409.0,2408.8,0.29058]
[1725509050463,3.2078,2409.0,2408.7,3.17059]
[1725509050654,3.2078,2409.0,2408.5,0.97933986]
[1725509050853,3.49839,2408.7,2408.5,0.00623986]
[1725509051054,0.7691,2408.6,2408.5,0.00623986]
[1725509051268,1.8115,2408.6,2408.5,0.00623986]
[1725509051655,2.10211,2408.6,2408.5,0.00623986]
[1725509051859,1.8115,2408.6,2408.5,0.00623986]
[1725509052160,2.10211,2408.6,2408.5,0.00623986]
[1725509052765,1.8115,2408.6,2408.5,0.00623986]
[1725509054152,2.10211,2408.6,2408.5,0.00623986]
[1725509054353,1.8115,2408.6,2408.5,0.00623986]
[1725509058767,1.8115,2408.6,2408.5,0.29685986]
[1725509060560,0.7691,2408.6,2408.5,0.29685986]
[1725509060873,0.7691,2408.6,2408.5,1.35545986]
[1725509062666,1.0275,2408.9,2408.5,5.50745986]
[1725509062865,0.7418,2408.8,2408.6,2.88]
[1725509063177,3.2078,2409.0,2408.9,0.29057]
[1725509065473,3.2078,2409.0,2408.9,4.44177]
[1725509066375,3.2078,2409.0,2408.9,10.44177]
[1725509066673,3.2078,2409.0,2408.9,10.65233675]
[1725509066860,2.13729411,2409.6,2408.9,14.29599675]
[1725509067066,2.13729411,2409.6,2409.5,2.88]
[1725509067368,2.13729411,2409.7,2409.5,3.1705]
[1725509067680,7.3794522,2409.8,2408.9,4.14479675]
[1725509067681,0.29051,2409.4,2408.9,3.38112675]
[1725509067874,4.6913,2409.3,2408.9,3.38112675]
[1725509068178,6.84433114,2409.3,2408.9,3.09056675]
[1725509068472,7.13485114,2409.3,2408.9,3.09056675]
[1725509068665,2.44356114,2409.2,2408.9,3.09056675]
[1725509068872,2.15303114,2409.2,2408.9,3.38113675]
[1725509069277,2.15303114,2409.2,2408.9,3.38112675]
[1725509069574,2.15303114,2409.1,2408.9,3.38112675]
[1725509069780,2.15303114,2409.2,2409.0,0.29055]
[1725509070176,2.15303114,2409.1,2408.9,3.38112675]
[1725509070471,2.15303114,2409.1,2409.0,0.29056]
[1725509071565,2.15303114,2409.1,2408.7,41.81759]
[1725509071879,2.15303114,2409.1,2408.6,0.7473]
[1725509071880,2.15303114,2408.8,2408.6,2.88]
[1725509072467,2.88293114,2408.9,2408.7,0.29059]
[1725509072774,2.93073114,2408.8,2408.7,0.29059]
[1725509073079,2.88293114,2408.9,2408.8,0.29058]
[1725509073379,2.15303114,2408.9,2408.8,3.17058]
[1725509073878,2.15303114,2409.0,2408.9,0.29057]
[1725509074076,2.15303114,2409.0,2408.9,1.02307]
[1725509074269,2.15303114,2409.0,2408.9,1.76007]
[1725509074472,2.15303114,2409.0,2408.8,3.17057]
[1725509075274,2.15303114,2409.0,2408.9,0.29057]
[1725509077273,2.15303114,2409.0,2408.6,4.3495]
[1725509077469,2.15699951,2408.8,2408.5,0.00623986]
[1725509077670,3.65369951,2408.7,2408.5,0.29684986]
[1725509077872,2.15699951,2408.6,2408.5,0.29684986]
[1725509078478,2.15699951,2408.6,2408.5,0.00623986]
[1725509078787,2.15699951,2408.6,2408.5,0.29685986]
[1725509078981,2.15699951,2408.6,2408.5,10.44885986]
[1725509079283,2.15699951,2408.8,2408.7,0.29059]
[1725509079477,2.15699951,2408.8,2408.7,3.17059]
[1725509079681,2.15699951,2408.9,2408.8,0.29058]
[1725509080084,2.15699951,2408.9,2408.8,1.05098]
[1725509080388,2.6881522,2409.0,2408.9,0.29057]
[1725509080389,2.15699951,2409.0,2408.9,0.29057]
[1725509081075,2.15699951,2409.0,2408.9,4.44177]
[1725509082680,2.15699951,2409.1,2409.0,0.29056]
[1725509082885,2.15699951,2409.1,2409.0,3.17056]
[1725509083079,6.6879522,2409.2,2409.0,3.17056]
[1725509083973,6.6879522,2409.2,2409.0,2.88]
[1725509084290,6.6879522,2409.2,2409.0,3.17056]
[1725509084479,6.6879522,2409.2,2409.1,0.29055]
[1725509084684,6.6879522,2409.2,2409.0,3.17055]
[1725509084987,2.15829387,2409.1,2409.0,3.17055]
[1725509087089,6.8393522,2409.1,2408.5,0.00623986]
[1725509087296,2.15827867,2408.6,2408.5,0.00623986]
[1725509087489,0.29061,2408.6,2408.5,0.00623986]
[1725509087788,5.97951,2408.6,2408.5,0.00623986]
[1725509091184,1.5369,2408.6,2408.5,0.00623986]
[1725509092291,4.23253292,2408.6,2408.5,0.00623986]
[1725509092596,4.23163337,2408.6,2408.5,0.00623986]
[1725509092790,5.6889,2408.6,2408.5,0.00623986]
[1725509093095,8.38338226,2408.6,2408.5,0.00623986]
[1725509093297,5.6889,2408.6,2408.5,0.00623986]
[1725509093484,8.38452845,2408.6,2408.5,0.00623986]
[1725509093796,4.23252845,2408.6,2408.5,0.00623986]
[1725509093996,4.23252845,2408.6,2408.5,0.29685986]
[1725509094301,1.5369,2408.6,2408.5,0.29685986]
[1725509094892,4.23252845,2408.6,2408.5,0.29685986]
[1725509095091,4.23252845,2408.6,2408.5,0.00623986]
[1725509095588,4.23252845,2408.6,2408.5,0.29685986]
[1725509096180,1.5369,2408.6,2408.5,0.29685986]
[1725509096895,3.69494739,2408.6,2408.5,0.29685986]
[1725509097794,4.23252845,2408.6,2408.5,0.00623986]
[1725509097991,1.5369,2408.6,2408.5,0.00623986]
[1725509098393,4.23252845,2408.6,2408.5,0.00623986]
[1725509098889,4.23252845,2408.6,2408.5,0.29685986]
[1725509099086,1.5369,2408.6,2408.5,0.29685986]
[1725509099398,4.23252845,2408.6,2408.5,0.29685986]
[1725509099593,4.23252845,2408.6,2408.5,0.00623986]
[1725509100092,1.5369,2408.6,2408.5,0.29685986]
[1725509100290,4.23252845,2408.6,2408.5,0.29685986]
[1725509100689,4.23252845,2408.6,2408.5,0.00623986]
[1725509102299,4.23252845,2408.6,2408.5,0.29685986]
[1725509102604,0.72666,2408.2,2407.1,1.07018121]
[1725509102902,2.6966383,2407.7,2407.6,0.29073]
[1725509103108,2.6966383,2407.8,2407.5,0.29073]
[1725509103301,0.7723,2407.9,2407.8,0.2907]
[1725509104296,2.9278184,2407.9,2407.8,0.2907]
[1725509105106,2.9278184,2407.9,2407.7,0.29071]
[1725509105295,0.7723,2407.9,2407.6,1.55912678]
[1725509105604,0.2907,2407.8,2407.6,0.00622678]
[1725509105803,0.7369,2407.8,2407.6,0.00622678]
[1725509105996,2.8924184,2407.8,2407.6,0.00622678]
[1725509106195,2.8924184,2407.8,2407.6,0.29694678]
[1725509106395,0.7369,2407.8,2407.6,0.29694678]
[1725509106601,0.7369,2407.8,2407.6,0.00622678]
[1725509109395,0.7369,2407.8,2407.6,0.29694678]
[1725509109597,0.7369,2407.8,2407.6,0.00622678]
[1725509110005,0.7369,2407.8,2407.6,0.29695678]
[1725509111400,0.7369,2407.8,2407.7,0.29071]
[1725509112500,0.7369,2407.8,2407.6,0.00622678]
[1725509112698,3.2078,2408.0,2407.6,4.15982678]
[1725509112899,3.2078,2408.0,2407.7,1.86291]
[1725509113105,3.2078,2408.0,2407.7,1.5722]
[1725509113400,3.2078,2408.0,2407.7,1.86291]
[1725509113703,3.9918,2408.0,2407.7,1.5722]
[1725509114100,3.9918,2408.0,2407.7,1.86291]
[1725509114396,3.9918,2408.0,2407.8,0.2907]
[1725509114902,3.2078,2408.0,2407.9,0.29069]
[1725509115402,3.2078,2408.0,2407.8,1.06729]
[1725509115605,3.2078,2408.0,2407.9,0.29069]
[1725509115992,3.2078,2408.0,2407.8,0.7766]
[1725509115993,0.00620939,2408.1,2408.0,0.29068]
[1725509116401,0.00620939,2408.1,2408.0,13.65128]
[1725509116906,0.00620939,2408.1,2408.0,10.44348]
[1725509117207,0.00620939,2408.1,2408.0,4.44348]
[1725509117404,0.00620939,2408.1,2408.0,10.44348]
[1725509117606,0.00620939,2408.1,2408.0,4.44348]
[1725509118003,0.00620939,2408.1,2408.0,10.44348]
[1725509118407,0.00620939,2408.1,2408.0,4.44348]
[1725509118602,0.00620939,2408.1,2408.0,10.44348]
[1725509119701,0.00620939,2408.1,2408.0,4.44348]
[1725509120096,0.00620939,2408.1,2408.0,4.1528]
[1725509120297,0.00620939,2408.1,2407.8,1.0673]
[1725509120702,0.00620939,2408.1,2407.8,0.7766]
[1725509121502,0.29687939,2408.1,2407.7,1.5722]
[1725509121813,3.50467939,2408.1,2407.7,1.86291]
[1725509122104,3.21400939,2408.1,2407.7,1.86291]
[1725509122706,5.36952779,2408.1,2407.6,0.00622678]
[1725509122898,1.07528,2408.0,2407.6,0.00622678]
[1725509124006,0.2907,2407.8,2407.6,0.00622678]
[1725509124207,0.7982,2407.7,2407.6,0.00622678]
[1725509131198,0.7982,2407.7,2407.6,0.29695678]
[1725509134309,2.1555184,2407.9,2407.8,0.2907]
[1725509134513,0.7553,2408.0,2407.9,0.29069]
[1725509134908,2.1555184,2408.0,2407.9,0.29069]
[1725509135120,4.11720939,2408.1,2408.0,0.29068]
[1725509135121,4.87250939,2408.1,2408.0,0.29068]
[1725509135316,7.02802779,2408.1,2408.0,0.29068]